bitfinex/quotes_SOLUSD_20260304
["timestamp","ask_amount","ask_price","bid_price","bid_amount"]
[1772634172342,11.10543499,90.046,90.0,4.1145606]
[1772634172640,4.06740367,90.045,90.0,4.1145606]
[1772634173225,4.06740367,90.039,90.0,4.1145606]
[1772634174339,4.06740367,90.037,90.002,4.1145606]
[1772634174525,11.10642173,90.038,90.002,4.1145606]
[1772634175242,9.69318564,90.05,90.008,4.1145606]
[1772634175446,4.06740367,90.055,90.008,4.1145606]
[1772634175845,51.57353773,90.061,90.008,4.1145606]
[1772634175846,9.69318564,90.04,90.008,4.1145606]
[1772634176141,38.86556954,90.054,90.008,4.1145606]
[1772634176448,9.69318564,90.05,90.01,4.1145606]
[1772634176634,4.06740367,90.049,90.01,4.1145606]
[1772634177230,9.69318564,90.07,90.014,4.1145606]
[1772634177431,11.10223547,90.072,90.028,4.1145606]
[1772634177742,4.06740367,90.097,90.047,0.28432314]
[1772634177945,4.06740367,90.097,90.048,4.1145606]
[1772634178337,11.09927188,90.096,90.05,4.1145606]
[1772634178529,4.06740367,90.095,90.05,4.1145606]
[1772634180037,4.06740367,90.089,90.05,4.1145606]
[1772634180238,4.06740367,90.069,90.017,4.39888374]
[1772634180434,4.06740367,90.059,90.018,4.1145606]
[1772634181145,9.69318564,90.04,90.018,4.1145606]
[1772634181352,4.06740367,90.049,90.014,4.1145606]
[1772634182039,38.85521435,90.078,90.014,4.1145606]
[1772634182040,4.06740367,90.059,90.014,4.1145606]
[1772634182346,38.85521435,90.078,89.994,15.22634884]
[1772634182347,11.10753201,90.029,89.994,15.22634884]
[1772634182544,11.10753201,90.029,89.995,4.1145606]
[1772634183047,9.69318564,90.04,89.995,4.1145606]
[1772634183237,4.06740367,90.049,89.999,4.1145606]
[1772634183545,9.69318564,90.05,89.999,4.1145606]
[1772634183746,13.76058931,90.05,89.999,4.1145606]
[1772634183944,13.76058931,90.05,90.008,0.28432314]
[1772634184144,4.06740367,90.049,90.009,4.1145606]
[1772634184347,4.06740367,90.049,89.994,38.89141799]
[1772634184348,4.06740367,90.038,90.007,11.11024628]
[1772634184851,11.10575226,90.044,90.008,4.1145606]
[1772634185050,11.10506502,90.049,90.008,4.1145606]
[1772634186434,11.10461362,90.053,90.01,4.1145606]
[1772634187153,9.68962244,90.05,90.01,4.1145606]
[1772634187352,4.06740367,90.039,90.004,11.11050131]
[1772634188532,11.10642173,90.038,90.004,11.11050131]
[1772634189137,11.10642173,90.038,90.004,15.22506191]
[1772634190038,4.06740367,90.049,90.005,4.1145606]
[1772634190352,4.06740367,90.048,90.005,4.1145606]
[1772634191939,4.06740367,90.039,89.997,0.28432314]
[1772634192148,4.06740367,90.029,89.989,4.1145606]
[1772634192344,55.5190169,90.06,90.003,4.1145606]
[1772634192345,9.68962244,90.06,90.003,4.1145606]
[1772634192549,4.06740367,90.059,90.019,4.1145606]
[1772634192853,13.75702611,90.05,90.019,4.1145606]
[1772634193161,13.75702611,90.04,89.986,4.39888374]
[1772634193767,4.06740367,90.049,89.986,4.39888374]
[1772634193949,11.09914869,90.097,89.994,4.1145606]
[1772634194148,20.78716988,90.11,90.019,4.1145606]
[1772634194347,20.78716988,90.11,90.009,0.14216157]
[1772634194348,9.68962244,90.1,90.027,4.39888374]
[1772634194645,4.06740367,90.099,90.048,4.1145606]
[1772634195047,4.06740367,90.099,90.058,4.1145606]
[1772634195459,4.06740367,90.109,90.065,0.14216157]
[1772634195667,4.06740367,90.109,90.066,4.1145606]
[1772634196160,4.06740367,90.107,90.068,4.1145606]
[1772634196370,4.06740367,90.107,90.062,11.10344784]
[1772634196667,4.06740367,90.099,90.062,11.10344784]
[1772634197442,4.06740367,90.099,90.062,15.21800844]
[1772634197848,4.06740367,90.099,90.063,4.1145606]
[1772634198369,4.2217542,90.097,90.064,11.10321549]
[1772634198547,4.2217542,90.097,90.064,15.3351514]
[1772634198747,4.2217542,90.097,90.065,4.23193591]
[1772634200262,4.2217542,90.097,90.06,11.10368615]
[1772634200448,4.2217542,90.095,90.06,11.10368615]
[1772634200650,4.2217542,90.095,90.061,4.23193591]
[1772634200957,4.2217542,90.079,90.028,4.23193591]
[1772634201163,4.2217542,90.059,90.009,4.23193591]
[1772634201459,4.2217542,90.059,90.019,4.23193591]
[1772634201642,13.91137664,90.05,90.019,4.23193591]
[1772634202466,13.91137664,90.05,89.986,88.90216978]
[1772634202467,4.2217542,90.072,90.021,4.23193591]
[1772634202761,11.10274924,90.068,90.021,4.23193591]
[1772634204368,15.26403563,90.068,90.021,4.23193591]
[1772634205168,15.26403563,90.068,90.023,4.12775424]
[1772634205463,4.16128639,90.049,90.016,15.23681537]
[1772634205761,4.16128639,90.049,89.969,49.96]
[1772634205762,4.16128639,90.051,89.991,4.12775424]
[1772634205962,9.68962244,90.04,89.991,4.12775424]
[1772634206168,9.68962244,90.04,89.999,4.12775424]
[1772634206364,4.16128639,90.039,89.999,4.12775424]
[1772634206667,38.8595552,90.068,90.018,0.28432314]
[1772634206668,4.16128639,90.059,90.018,0.28432314]
[1772634206848,4.16128639,90.059,90.018,4.41207738]
[1772634207364,4.16128639,90.057,90.019,38.88068073]
[1772634207565,4.16128639,90.057,90.02,4.12775424]
[1772634208481,4.16128639,90.066,90.02,4.12775424]
[1772634208945,4.16128639,90.078,90.023,4.12775424]
[1772634209143,4.16128639,90.078,90.023,4.41207738]
[1772634209363,4.16128639,90.078,90.025,4.41207738]
[1772634209551,11.10161306,90.077,90.025,4.41207738]
[1772634209760,4.16128639,90.077,90.025,4.41207738]
[1772634210349,4.16128639,90.086,90.027,4.41207738]
[1772634211649,15.26191357,90.085,90.033,4.12775424]
[1772634211970,15.26191357,90.085,90.039,4.12775424]
[1772634212270,4.16128639,90.084,90.039,4.12775424]
[1772634213756,4.16128639,90.084,90.041,4.12775424]
[1772634214453,4.16128639,90.079,90.04,11.10617503]
[1772634214772,4.16128639,90.069,90.04,11.10617503]
[1772634214967,4.16128639,90.069,90.035,11.10672123]
[1772634215183,31.90970385,90.096,90.039,4.12775424]
[1772634215471,4.16128639,90.094,90.039,4.12775424]
[1772634215855,4.16128639,90.089,90.041,4.12775424]
[1772634216755,4.16128639,90.079,90.041,4.12775424]
[1772634217766,15.2627762,90.078,90.043,4.12775424]
[1772634217976,4.16128639,90.077,90.043,4.12775424]
[1772634220274,4.16128639,90.077,90.042,38.8707492]
[1772634220275,4.16128639,90.077,90.045,4.12775424]
[1772634220473,4.16128639,90.075,90.044,11.10568166]
[1772634222157,4.16128639,90.075,90.04,31.89291564]
[1772634222158,11.10198281,90.074,90.04,31.89291564]
[1772634222361,15.2632692,90.074,90.041,4.12775424]
[1772634222684,4.16128639,90.073,90.041,4.12775424]
[1772634223755,4.16128639,90.071,90.042,11.10592834]
[1772634224162,4.16128639,90.089,90.043,4.12775424]
[1772634224680,4.16128639,90.079,90.043,4.12775424]
[1772634225779,15.2614207,90.089,90.049,4.12775424]
[1772634225984,4.16128639,90.088,90.049,4.12775424]
[1772634227977,4.16128639,90.086,90.051,4.12775424]
[1772634228282,4.2217542,90.069,90.016,4.49404281]
[1772634228481,4.2217542,90.059,90.016,4.49404281]
[1772634228670,4.2217542,90.059,90.018,4.49404281]
[1772634229874,4.2217542,90.057,90.02,4.49404281]
[1772634230672,4.2217542,90.057,89.986,9.26808974]
[1772634230673,4.2217542,90.039,90.006,11.11036548]
[1772634230872,4.2217542,90.039,89.957,18.52857774]
[1772634230873,4.2217542,90.019,89.978,4.49404281]
[1772634231091,4.2217542,89.999,89.97,11.11477884]
[1772634232066,4.2217542,89.989,89.936,4.49404281]
[1772634232272,4.2217542,89.989,89.937,4.49404281]
[1772634232478,4.2217542,89.989,89.949,4.49404281]
[1772634233290,11.11135803,89.998,89.949,4.49404281]
[1772634233497,4.2217542,89.997,89.952,0.28432314]
[1772634233800,4.2217542,89.997,89.955,4.49404281]
[1772634233978,4.2217542,89.995,89.956,15.61058867]
[1772634234477,4.2217542,89.995,89.957,4.49404281]
[1772634235179,4.2217542,89.989,89.957,4.49404281]
[1772634235587,11.11160496,89.996,89.957,4.49404281]
[1772634235788,15.33335916,89.996,89.957,4.49404281]
[1772634236177,4.2217542,89.995,89.959,4.49404281]
[1772634236476,4.2217542,90.007,89.959,4.49404281]
[1772634236679,11.11049386,90.005,89.959,4.49404281]
[1772634236889,4.2217542,89.999,89.959,4.49404281]
[1772634238301,4.2217542,89.997,89.96,11.11605157]
[1772634238781,4.2217542,89.997,89.961,4.49404281]
[1772634239195,4.2217542,89.989,89.952,4.49404281]
[1772634239397,4.2217542,89.969,89.93,0.05735601]
[1772634239585,4.17953665,89.939,89.93,0.05735601]
[1772634240404,4.17953665,89.937,89.93,0.05735601]
[1772634240592,4.17953665,89.959,89.93,0.05735601]
[1772634240901,9.2992049,90.001,89.93,0.05735601]
[1772634240902,4.17953665,89.977,89.931,4.49404281]
[1772634241285,11.11407486,89.976,89.931,4.49404281]
[1772634242007,4.17953665,89.998,89.945,4.49404281]
[1772634242182,4.17953665,89.998,89.949,4.49404281]
[1772634242501,11.11083966,90.003,89.959,4.49404281]
[1772634242702,11.11020015,90.008,89.959,4.49404281]
[1772634244001,4.17953665,90.007,89.959,4.49404281]
[1772634244298,11.11037041,90.006,89.961,4.49404281]
[1772634245198,4.17953665,89.989,89.951,4.49404281]
[1772634245500,4.17953665,89.989,89.942,4.49404281]
[1772634245703,9.69040717,89.98,89.942,4.49404281]
[1772634245891,4.17953665,89.979,89.942,4.49404281]
[1772634246389,4.17953665,89.977,89.943,11.1181526]
[1772634246586,11.11332655,89.983,89.944,4.49404281]
[1772634246893,15.29215665,89.988,89.944,4.49404281]
[1772634247299,4.17953665,89.987,89.944,4.49404281]
[1772634248497,4.17953665,89.985,89.945,11.11790538]
[1772634248880,4.17953665,89.985,89.945,15.61194819]
[1772634249085,11.1123308,89.991,89.946,4.77836595]
[1772634249287,4.17953665,89.989,89.946,4.49404281]
[1772634249618,4.17953665,89.979,89.945,11.11790538]
[1772634249785,4.17953665,89.989,89.946,4.49404281]
[1772634250706,11.1123308,89.991,89.946,4.49404281]
[1772634250911,4.17953665,89.998,89.948,4.49404281]
[1772634251408,38.88932098,89.999,89.948,4.49404281]
[1772634251409,4.17953665,89.989,89.948,4.49404281]
[1772634251702,43.06885763,89.999,89.948,4.49404281]
[1772634251889,4.17953665,89.998,89.948,4.49404281]
[1772634253610,11.11148149,89.997,89.95,4.49404281]
[1772634253815,4.17953665,89.996,89.95,4.49404281]
[1772634254809,4.17953665,89.996,89.93,0.05735601]
[1772634254810,4.17953665,89.959,89.93,0.05735601]
[1772634254996,13.88420571,89.95,89.93,0.05735601]
[1772634255311,4.13774128,89.949,89.912,11.12198594]
[1772634255896,11.11753457,89.948,89.912,4.49404281]
[1772634256414,4.13774128,89.959,89.912,4.49404281]
[1772634256636,4.13774128,89.959,89.918,4.23146281]
[1772634256811,11.11629871,89.958,89.918,4.23146281]
[1772634257113,15.25403999,89.958,89.918,4.23146281]
[1772634257814,15.25268087,89.969,89.919,38.9239204]
[1772634258014,11.11493959,89.969,89.926,4.23146281]
[1772634258314,44.44592597,89.997,89.919,38.9239204]
[1772634258315,4.13774128,89.998,89.948,4.44720457]
[1772634258610,4.13774128,89.989,89.92,4.73152771]
[1772634259124,11.11123456,89.999,89.927,4.73152771]
[1772634260014,11.11123456,89.999,89.929,4.73152771]
[1772634260333,38.88932098,89.999,89.929,4.73152771]
[1772634260712,15.24897584,89.999,89.929,4.73152771]
[1772634260907,11.11000011,90.009,89.929,4.73152771]
[1772634261113,4.13774128,90.008,89.929,4.73152771]
[1772634262325,4.13774128,90.006,89.931,4.73152771]
[1772634262511,4.13774128,89.999,89.931,4.73152771]
[1772634264215,4.09194636,89.989,89.933,4.36546792]
[1772634265607,4.09194636,89.989,89.933,4.08114478]
[1772634266331,4.09194636,89.987,89.939,4.08114478]
[1772634267032,11.11181928,89.995,89.949,4.08114478]
[1772634268707,4.09194636,89.998,89.951,4.08114478]
[1772634268918,4.09194636,89.979,89.942,11.11827622]
[1772634271120,11.11382782,89.978,89.942,11.11827622]
[1772634271323,4.09194636,89.977,89.942,11.11827622]
[1772634272120,4.09194636,89.969,89.94,11.11852346]
[1772634273209,11.11506313,89.968,89.938,4.08114478]
[1772634273610,11.11506313,89.968,89.929,4.08114478]
[1772634273611,4.09194636,89.967,89.929,4.08114478]
[1772634274526,9.70466906,89.94,89.909,4.08114478]
[1772634275329,9.70466906,89.94,89.911,4.08114478]
[1772634275538,11.11815817,89.943,89.911,4.08114478]
[1772634275923,15.20994342,89.945,89.911,4.08114478]
[1772634276116,4.09194636,89.944,89.911,4.08114478]
[1772634277238,11.11864708,89.939,89.911,4.08114478]
[1772634277413,11.11864708,89.939,89.904,0.280974]
[1772634277414,4.09194636,89.929,89.904,0.280974]
[1772634277616,4.09194636,89.919,89.895,11.12397817]
[1772634277918,11.11864708,89.939,89.896,4.08114478]
[1772634278322,11.11864708,89.939,89.895,11.12397817]
[1772634278323,9.70466906,89.95,89.898,4.08114478]
[1772634278624,4.09194636,89.955,89.898,4.08114478]
[1772634279214,11.11679302,89.954,89.899,38.93257988]
[1772634279413,9.70466906,89.97,89.917,4.08114478]
[1772634279633,4.09194636,89.973,89.919,4.08114478]
[1772634280137,4.09194636,89.969,89.919,4.08114478]
[1772634280521,4.09194636,89.949,89.9,4.36546792]
[1772634281230,15.2067624,89.97,89.901,38.93171377]
[1772634281419,4.09194636,89.969,89.902,4.36546792]
[1772634281623,9.70466906,89.96,89.902,4.36546792]
[1772634282439,9.70466906,89.95,89.902,4.36546792]
[1772634282645,9.70466906,89.94,89.902,4.08114478]
[1772634282936,4.09194636,89.929,89.882,4.08114478]
[1772634283146,9.70466906,89.91,89.882,4.08114478]
[1772634283441,11.12235704,89.909,89.883,11.12557435]
[1772634283844,11.12235704,89.909,89.88,0.2]
[1772634284141,11.12235704,89.909,89.881,11.12582192]
[1772634285442,11.12235704,89.909,89.88,0.2]
[1772634285443,4.09194636,89.908,89.88,0.2]
[1772634285623,4.09194636,89.889,89.87,0.2]
[1772634286423,4.05102689,89.899,89.87,0.2]
[1772634286940,9.70466906,89.89,89.87,0.2]
[1772634288226,9.70466906,89.89,89.86,0.2]
[1772634288227,3.97041145,89.879,89.86,1e-08]
[1772634288627,9.70466906,89.88,89.86,1e-08]
[1772634288936,3.97041145,89.909,89.862,4.21531849]
[1772634289723,3.97041145,89.907,89.862,4.21531849]
[1772634290345,11.12272818,89.906,89.864,4.21531849]
[1772634291545,3.97041145,89.907,89.864,4.21531849]
[1772634291848,3.97041145,89.906,89.864,4.21531849]
[1772634292029,3.97041145,89.899,89.864,4.21531849]
[1772634292544,11.12371799,89.898,89.864,4.21531849]
[1772634292841,11.12371799,89.898,89.866,4.21531849]
[1772634295631,11.12371799,89.898,89.868,4.21531849]
[1772634296438,3.97041145,89.897,89.867,11.12755516]
[1772634296945,11.12371799,89.898,89.862,11.12806032]
[1772634296946,3.97041145,89.889,89.862,11.12806032]
[1772634297153,9.70466906,89.89,89.86,1e-08]
[1772634297335,11.12483173,89.889,89.861,4.21531849]
[1772634297858,3.97041145,89.899,89.861,4.21531849]
[1772634298151,3.97041145,89.889,89.86,1e-08]
[1772634299455,3.97041145,89.889,89.858,11.12866967]
[1772634299456,3.93070733,89.869,89.826,4.21531849]
[1772634299637,9.70466906,89.86,89.831,11.13190427]
[1772634299950,9.70466906,89.85,89.83,11.33206171]
[1772634300156,9.70466906,89.86,89.83,15.5473802]
[1772634300459,3.93070733,89.859,89.831,11.13201456]
[1772634300636,9.70466906,89.85,89.83,0.2]
[1772634300832,9.70466906,89.87,89.831,4.21531849]
[1772634301173,3.93070733,89.879,89.831,4.21531849]
[1772634301336,3.93070733,89.859,89.831,11.13201456]
[1772634301674,3.93070733,89.849,89.83,0.2]
[1772634302034,3.93070733,89.859,89.83,0.2]
[1772634302532,3.93070733,89.859,89.83,11.33209963]
[1772634302729,9.70466906,89.88,89.839,4.21531849]
[1772634303133,9.70466906,89.87,89.839,4.21531849]
[1772634303356,13.63537639,89.87,89.839,4.21531849]
[1772634303558,11.12730752,89.869,89.84,11.13089937]
[1772634303754,3.93070733,89.859,89.83,0.2]
[1772634304059,3.93070733,89.951,89.835,4.21531849]
[1772634304267,27.79198256,89.954,89.874,4.21531849]
[1772634304268,3.93070733,89.948,89.874,4.21531849]
[1772634304557,3.93070733,89.948,89.873,4.82477569]
[1772634304558,3.93070733,89.948,89.901,0.28432314]
[1772634304853,3.93070733,89.939,89.9,4.21531849]
[1772634305057,3.93070733,89.939,89.869,1.11273075]
[1772634305058,3.93070733,89.919,89.88,4.21531849]
[1772634305257,9.70466906,89.9,89.869,4.21531849]
[1772634305756,9.70466906,89.9,89.87,11.1271837]
[1772634306060,6.86796695,89.947,89.882,0.28432314]
[1772634306259,6.86796695,89.947,89.907,4.21531849]
[1772634306555,6.86796695,89.947,89.909,4.21531849]
[1772634308356,6.86796695,89.947,89.911,4.21531849]
[1772634308562,3.93070733,89.929,89.888,4.21531849]
[1772634308753,9.71259465,89.92,89.889,4.21531849]
[1772634309971,9.71259465,89.93,89.889,4.21531849]
[1772634310341,20.83241215,89.93,89.891,4.21531849]
[1772634310641,3.93070733,89.929,89.891,4.21531849]
[1772634311960,11.12000711,89.928,89.892,11.12446046]
[1772634312342,11.12000711,89.928,89.893,4.21531849]
[1772634312957,9.71259465,89.91,89.873,4.21531849]
[1772634313160,3.93070733,89.899,89.862,4.21531849]
[1772634313346,14.81384113,89.928,89.864,4.21531849]
[1772634313347,3.93070733,89.909,89.864,4.21531849]
[1772634313952,11.12248075,89.908,89.866,4.21531849]
[1772634314352,3.69383402,89.928,89.865,38.94730984]
[1772634314353,3.93070733,89.919,89.87,4.21531849]
[1772634314866,38.91959211,89.929,89.87,4.21531849]
[1772634315161,9.71259465,89.92,89.87,4.21531849]
[1772634315741,3.93070733,89.928,89.87,4.21531849]
[1772634315959,9.71259465,89.92,89.871,38.94470963]
[1772634316164,3.93070733,89.909,89.872,4.21531849]
[1772634316348,9.71259465,89.91,89.872,4.21531849]
[1772634316549,13.64330198,89.91,89.872,4.21531849]
[1772634316852,3.93070733,89.919,89.872,4.21531849]
[1772634318344,11.12124379,89.918,89.874,4.2409049]
[1772634318545,9.71259465,89.93,89.878,4.2409049]
[1772634318762,11.11988346,89.929,89.88,4.2409049]
[1772634319666,13.64330198,89.92,89.88,4.2409049]
[1772634319849,3.93070733,89.919,89.88,4.2409049]
[1772634320366,9.71259465,89.91,89.881,11.12582192]
[1772634320555,3.93070733,89.917,89.882,4.2409049]
[1772634320754,9.71259465,89.91,89.882,4.2409049]
[1772634320957,9.71259465,89.91,89.864,4.2409049]
[1772634320958,3.93070733,89.909,89.864,4.2409049]
[1772634321465,11.12124379,89.918,89.87,4.2409049]
[1772634321770,3.93070733,89.917,89.87,4.2409049]
[1772634322151,3.93070733,89.909,89.87,4.2409049]
[1772634322565,9.71259465,89.89,89.862,15.36896507]
[1772634322949,9.71259465,89.89,89.853,11.12928894]
[1772634323250,3.93070733,89.889,89.853,11.12928894]
[1772634323955,13.64330198,89.88,89.847,4.36715394]
[1772634324186,3.93070733,89.869,89.839,11.21897755]
[1772634324850,3.93070733,89.867,89.839,11.21897755]
[1772634325047,9.71259465,89.86,89.839,11.21897755]
[1772634325377,3.93070733,89.867,89.839,11.21897755]
[1772634325761,3.93070733,89.867,89.84,11.13089937]
[1772634326364,3.93070733,89.876,89.84,11.13089937]
[1772634326549,15.05719665,89.876,89.841,4.36715394]
[1772634326979,20.8385554,89.88,89.843,4.36715394]
[1772634327679,9.71259465,89.87,89.843,4.36715394]
[1772634327860,9.71259465,89.87,89.842,11.13065158]
[1772634329486,9.71259465,89.86,89.839,11.21897755]
[1772634329654,3.93070733,89.859,89.83,0.2]
[1772634329971,9.71259465,89.86,89.83,0.2]
[1772634330560,11.12730752,89.869,89.831,4.36715394]
[1772634331477,11.12682044,89.873,89.832,11.13189064]
[1772634331672,11.1244829,89.892,89.839,4.36715394]
[1772634332375,3.93070733,89.895,89.839,4.36715394]
[1772634332574,27.80545147,89.911,89.832,83.4891798]
[1772634332575,3.93070733,89.915,89.849,4.36715394]
[1772634332756,11.12141296,89.917,89.859,4.36715394]
[1772634332956,9.71259465,89.9,89.859,4.36715394]
[1772634333166,3.93070733,89.899,89.859,4.36715394]
[1772634333567,11.12371799,89.898,89.86,11.12842198]
[1772634333880,11.12371799,89.898,89.861,4.36715394]
[1772634334379,27.80114077,89.925,89.863,0.52958855]
[1772634334556,4.47287812,89.93,89.877,0.52958855]
[1772634334752,4.47287812,89.93,89.888,0.28432314]
[1772634334956,4.47287812,89.93,89.89,0.28432314]
[1772634335656,4.47287812,89.93,89.892,0.28432314]
[1772634336262,4.47287812,89.928,89.892,0.28432314]
[1772634336668,4.47287812,89.939,89.897,0.52958855]
[1772634336869,4.47287812,89.959,89.907,0.52958855]
[1772634337778,4.47287812,89.957,89.908,38.92868264]
[1772634339378,4.47287812,89.955,89.913,0.28432314]
[1772634340066,4.47287812,89.955,89.915,0.28432314]
[1772634340276,4.47287812,89.955,89.918,0.52958855]
[1772634340864,4.47287812,89.955,89.922,0.28432314]
[1772634341067,11.1140719,89.977,89.922,0.28432314]
[1772634341276,11.1140719,89.977,89.926,0.28432314]
[1772634341476,9.71259465,89.97,89.927,38.9204577]
[1772634341689,9.71259465,89.97,89.757,30.28644562]
[1772634341690,9.71259465,89.95,89.897,4.36715394]
[1772634341885,11.1140719,89.977,89.907,4.36715394]
[1772634341886,9.71259465,89.96,89.907,4.36715394]
[1772634343388,4.47287812,89.957,89.909,4.36715394]
[1772634343988,4.47287812,89.966,89.917,4.36715394]
[1772634344175,4.47287812,89.987,89.932,0.28432314]
[1772634344374,13.67610369,89.984,89.943,4.36715394]
[1772634344688,4.47287812,89.969,89.931,0.28432314]
[1772634345075,4.47287812,89.969,89.908,228.01085552]
[1772634345076,4.47287812,89.969,89.909,4.36715394]
[1772634345279,4.47287812,89.959,89.922,0.28432314]
[1772634345590,4.47287812,89.959,89.924,0.28432314]
[1772634346372,4.47287812,89.959,89.925,0.28432314]
[1772634347773,4.47287812,89.959,89.927,0.28432314]
[1772634348090,4.47287812,89.959,89.927,4.65147708]
[1772634348888,4.312203,89.979,89.927,4.65147708]
[1772634349265,4.312203,89.978,89.927,4.65147708]
[1772634349487,4.312203,89.969,89.927,0.28432314]
[1772634350079,9.71259465,89.97,89.928,11.12000711]
[1772634350080,4.312203,89.967,89.928,11.12000711]
[1772634350285,4.312203,89.967,89.928,38.9200249]
[1772634351111,4.312203,89.967,89.929,4.30303132]
[1772634351895,4.312203,89.959,89.928,15.42303843]
[1772634352099,4.312203,89.959,89.93,11.11975981]
[1772634353178,11.11629871,89.958,89.93,11.11975981]
[1772634353490,4.312203,89.957,89.93,11.11975981]
[1772634354085,4.312203,89.955,89.921,0.28432314]
[1772634355388,4.312203,89.955,89.923,0.28432314]
[1772634355589,4.312203,89.955,89.864,113.78287599]
[1772634355590,4.312203,89.949,89.886,4.30303132]
[1772634356583,4.312203,89.96,89.888,4.30303132]
[1772634357396,4.312203,89.958,89.89,4.30303132]
[1772634357601,4.312203,89.949,89.898,4.30303132]
[1772634358094,4.312203,89.949,89.914,4.30303132]
[1772634358691,4.312203,89.963,89.922,4.30303132]
[1772634358897,102.7,89.978,89.893,3.69383402]
[1772634358898,4.312203,89.974,89.924,4.30303132]
[1772634360406,4.312203,89.972,89.926,4.30303132]
[1772634360784,11.11375498,89.979,89.934,4.30303132]
[1772634360982,11.11375498,89.979,89.925,38.92132332]
[1772634360983,5.79520304,89.982,89.936,4.30303132]
[1772634361276,5.79520304,89.982,89.944,4.30303132]
[1772634361277,1.48300004,89.982,89.944,4.30303132]
[1772634361484,1.48300004,89.982,89.952,4.30303132]
[1772634361780,0.2,89.99,89.954,4.30303132]
[1772634362379,4.312203,89.988,89.955,11.11666944]
[1772634362581,4.312203,89.986,89.955,11.11666944]
[1772634363417,4.312203,89.986,89.951,11.11714007]
[1772634363703,4.312203,89.979,89.931,38.91872657]
[1772634364086,4.312203,89.979,89.932,0.28432314]
[1772634364686,4.312203,89.977,89.931,38.91872657]
[1772634364998,0.2,89.99,89.932,4.58735446]
[1772634364999,4.312203,89.989,89.932,4.58735446]
[1772634367188,11.3124012,89.99,89.939,0.28432314]
[1772634367189,4.312203,89.987,89.939,0.28432314]
[1772634367390,4.312203,89.987,89.944,4.30303132]
[1772634368897,11.11259279,89.988,89.946,4.30303132]
[1772634369302,4.312203,89.987,89.946,4.30303132]
[1772634370501,4.312203,89.987,89.948,4.30303132]
[1772634370695,0.2,89.99,89.953,4.30303132]
[1772634371002,4.312203,89.997,89.963,4.30303132]
[1772634371688,4.312203,89.995,89.954,11.11679302]
[1772634371903,4.312203,89.995,89.954,38.90877558]
[1772634372904,4.312203,89.995,89.923,44.48241233]
[1772634372905,11.11047111,90.006,89.957,4.30303132]
[1772634373081,4.312203,90.005,89.957,4.30303132]
[1772634374308,4.312203,90.005,89.956,38.90791052]
[1772634374509,9.7036881,89.99,89.932,4.30303132]
[1772634374807,4.312203,89.979,89.934,4.30303132]
[1772634375006,4.312203,89.977,89.935,11.1191416]
[1772634375194,4.312203,89.977,89.936,4.30303132]
[1772634376790,4.312203,89.975,89.937,43.21916149]
[1772634376985,4.312203,89.975,89.938,4.30303132]
[1772634377390,4.312203,89.969,89.937,38.91613017]
[1772634377805,4.312203,89.959,89.919,11.12112011]
[1772634378405,4.312203,89.959,89.919,38.9239204]
[1772634379002,4.17283939,89.957,89.919,38.9239204]
[1772634379918,4.17283939,89.976,89.92,4.77699648]
[1772634380213,4.17283939,89.971,89.92,4.77699648]
[1772634380405,4.17283939,89.949,89.919,11.12112011]
[1772634380724,4.17283939,89.949,89.908,11.12248075]
[1772634380905,4.17283939,89.947,89.911,4.49267334]
[1772634381120,4.17283939,89.956,89.913,4.49267334]
[1772634381612,27.77578223,90.007,89.921,4.49267334]
[1772634381790,27.77578223,90.007,89.912,1.39652173]
[1772634381791,9.7036881,90.0,89.936,0.28432314]
[1772634381990,11.11259279,89.988,89.943,4.49267334]
[1772634382610,38.89407476,89.988,89.943,4.49267334]
[1772634382815,11.11259279,89.988,89.943,4.49267334]
[1772634383005,11.11259279,89.988,89.944,43.37902995]
[1772634383208,11.11259279,89.988,89.945,4.46592848]
[1772634383597,4.3345107,89.987,89.945,4.46592848]
[1772634384209,4.3345107,89.985,89.946,38.91223623]
[1772634386124,4.3345107,89.985,89.946,43.37816471]
[1772634386421,4.3345107,89.983,89.947,4.46592848]
[1772634386618,4.3345107,89.991,89.947,4.46592848]
[1772634386803,4.3345107,89.988,89.947,4.46592848]
[1772634386999,4.3345107,89.988,89.947,3.46592848]
[1772634387420,4.3345107,89.979,89.919,0.28432314]
[1772634387634,4.3345107,89.979,89.918,38.92435328]
[1772634387813,4.3345107,89.979,89.919,0.28432314]
[1772634388397,4.3345107,89.977,89.921,0.28432314]
[1772634389036,4.3345107,89.977,89.931,0.28432314]
[1772634389208,4.3345107,89.977,89.934,4.46592848]
[1772634389729,4.3345107,89.969,89.921,4.46592848]
[1772634390027,4.3345107,89.969,89.922,0.14216157]
[1772634390321,4.3345107,89.958,89.922,11.12074909]
[1772634390522,4.3345107,89.958,89.882,1.11256981]
[1772634390523,4.3345107,89.949,89.913,4.46592848]
[1772634390705,4.3345107,89.949,89.904,4.46592848]
[1772634391019,38.906613,89.959,89.891,4.46592848]
[1772634391020,4.3345107,89.939,89.891,4.46592848]
[1772634391225,4.3345107,89.929,89.89,11.12470797]
[1772634391747,4.3345107,89.919,89.885,11.12521458]
[1772634391930,4.3345107,89.919,89.875,11.12656467]